fUSD/lending_fUSD_20250523
["ID","MTS","AMOUNT","RATE_DAILY","PERIOD"]
[362063294,1747962643245,-420.0,0.00030408,5]
[362063296,1747962643254,-569.45528596,0.00030408,5]
[362063298,1747962643264,-420.0,0.00030408,5]
[362063300,1747962643273,-420.0,0.00030408,5]
[362063302,1747962643282,-2990.3,0.00030408,5]
[362063304,1747962643292,-478.92,0.00030408,5]
[362063306,1747962643301,-420.0,0.00030408,5]
[362063308,1747962643315,-420.0,0.00030408,5]
[362063310,1747962643324,-420.0,0.00030408,5]
[362063312,1747962643334,-420.0,0.00030408,5]
[362063314,1747962643343,-420.0,0.00030408,5]
[362063316,1747962643353,-988.9,0.00030408,5]
[362063318,1747962643362,-420.0,0.00030408,5]
[362063320,1747962643371,-420.0,0.00030408,5]
[362063322,1747962643381,-298.64882075,0.00030408,5]
[362063324,1747962643391,-420.0,0.00030408,5]
[362063326,1747962643401,-420.0,0.00030408,5]
[362063328,1747962643410,-420.0,0.00030408,5]
[362063330,1747962643419,-777.38,0.00030408,5]
[362063332,1747962643428,-727.56,0.00030408,2]
[362063334,1747962643438,-580.93,0.00030408,5]
[362063336,1747962643448,-1487.59,0.00030408,5]
[362063338,1747962643457,-420.0,0.00030408,5]
[362063340,1747962643467,-420.0,0.00030408,5]
[362063342,1747962643476,-420.0,0.00030408,5]
[362063344,1747962643486,-420.0,0.00030408,5]
[362063346,1747962643495,-420.0,0.00030408,5]
[362063348,1747962643505,-420.0,0.00030409,5]
[362063350,1747962643514,-420.0,0.00030409,5]
[362063352,1747962643524,-420.0,0.00030409,5]
[362063353,1747962643533,-420.0,0.00030409,5]
[362063355,1747962643543,-420.0,0.00030409,5]
[362063357,1747962643552,-420.0,0.00030409,5]
[362063359,1747962643562,-420.0,0.00030409,5]
[362063361,1747962643571,-420.0,0.00030409,5]
[362063364,1747962643581,-420.0,0.00030409,5]
[362063365,1747962643591,-352.24209622,0.00030409,5]
[362063367,1747962643600,-420.0,0.00030409,5]
[362063369,1747962643610,-420.0,0.00030409,5]
[362063371,1747962643619,-420.0,0.00030409,5]
[362063373,1747962643628,-420.0,0.00030409,5]
[362063375,1747962643638,-420.0,0.00030409,5]
[362063377,1747962643647,-420.0,0.00030409,5]
[362063380,1747962643657,-420.0,0.00030409,5]
[362063381,1747962643666,-420.0,0.00030409,5]
[362063383,1747962643675,-420.0,0.00030409,5]
[362063385,1747962643684,-155.0,0.00030409,2]
[362063387,1747962643693,-1023.19,0.00030411,2]
[362063389,1747962643702,-252.76387267,0.00030424,2]
[362063391,1747962643711,-420.0,0.00030504,5]
[362063393,1747962643720,-420.0,0.00030504,5]
[362063395,1747962643729,-420.0,0.00030504,5]
[362063397,1747962643738,-420.0,0.00030504,5]
[362063399,1747962643747,-185.73123224,0.00030504,2]
[362063401,1747962643757,-302.68414296,0.00030505,11]
[362063403,1747962643765,-503756.05363303,0.00030505,11]
[362063406,1747962643778,-10111.76150018,0.00030505,11]
[362063408,1747962643793,-1115.7,0.00030505,11]
[362063410,1747962643804,-9376.46749257,0.00030505,11]
[362063412,1747962643814,-33086.79408404,0.00030505,11]
[362063415,1747962643825,-4193.61710294,0.00030505,11]
[362063440,1747962644060,-319.66466187,0.00030505,11]
[362063442,1747962644071,-6132.73122094,0.00030505,11]
[362063518,1747962645928,-83361.56468715,0.00030505,11]
[362063519,1747962645939,-227362.235149,0.00030505,3]
[362063520,1747962645949,-75613.66616998,0.00030505,3]
[362063521,1747962645961,-955.0,0.00030505,3]
[362063523,1747962646207,-634.40000001,0.00030505,3]
[362063524,1747962646269,-379.10403484,0.00030505,3]
[362063525,1747962646316,-134.33753716,0.00030505,3]
[362063526,1747962646328,-12292.68316476,0.00030505,3]
[362063527,1747962646388,-1269.7494336,0.00030505,3]
[362063533,1747963182497,-250.0,0.00015,2]
[362063534,1747963183826,-170.0,0.00017,2]
[362063535,1747963187078,-130.0,0.00017,2]
[362063536,1747963187100,-290.0,0.00019,2]
[362063537,1747963189739,-60.0,0.00019,2]
[362063555,1747963458875,207.73,0.00013699,2]
[362063556,1747963460368,-207.73,0.00020187,2]
[362063558,1747963508658,-152.27,0.00017,2]
[362063559,1747963510177,-420.0,0.00017,2]
[362063560,1747963513053,-420.0,0.00017,2]
[362063561,1747963514910,-420.0,0.00017,2]
[362063562,1747963516516,-420.0,0.00017,2]
[362063563,1747963520505,-420.0,0.00017,2]
[362063564,1747963523811,-420.0,0.00017,2]
[362063565,1747963525030,-420.0,0.00017,2]
[362063566,1747963526587,-420.0,0.00017,2]
[362063567,1747963528778,-420.0,0.00017,2]
[362063568,1747963530292,-420.0,0.00017,2]
[362063569,1747963531903,-420.0,0.00017,2]
[362063570,1747963534352,-420.0,0.00017,2]
[362063571,1747963536583,-420.0,0.00017,2]
[362063572,1747963539339,-420.0,0.00017,2]
[362063573,1747963541500,-420.0,0.00017,2]
[362063574,1747963546002,-420.0,0.00017,2]
[362063575,1747963548079,-245.20483,0.00017,2]
[362063576,1747963549796,-420.0,0.00017,2]
[362063577,1747963551859,-420.0,0.00017,2]
[362063578,1747963554711,-364.256013,0.00016915,2]
[362063579,1747963554736,-55.743987,0.00017,2]
[362063580,1747963556252,-420.0,0.00017,2]
[362063581,1747963557881,-420.0,0.00017,2]
[362063582,1747963559112,-1959.06111637,0.00017,2]
[362063583,1747963560549,-464.75,0.00017,2]
[362063584,1747963562306,12.84910328,8e-05,2]
[362063585,1747963562328,2794.3733086,8e-05,2]
[362063586,1747963562350,2794.3733086,8e-05,2]
[362063587,1747963562371,273.06045962,8e-05,2]
[362063588,1747963563809,-420.0,0.00017,2]
[362063589,1747963565871,-420.0,0.00017,2]
[362063590,1747963569547,-420.0,0.00017,2]
[362063591,1747963571073,-300.0,0.00017,2]
[362063592,1747963573826,-420.0,0.00017,2]
[362063593,1747963576714,-420.0,0.00017,2]
[362063594,1747963578962,-251.19133878,0.00017,2]
[362063595,1747963583277,-191.93480907,0.00017,2]
[362063596,1747963585508,-420.0,0.00017,2]
[362063598,1747963587352,-420.0,0.00017,2]
[362063600,1747963590649,-420.0,0.00017,2]
[362063602,1747963593357,-420.0,0.00017,2]
[362063607,1747963594973,-420.0,0.00016999,2]
[362063608,1747963597088,-65.87293976,0.00016999,2]
[362063609,1747963597111,-354.12706024,0.00016999,2]
[362063610,1747963599116,-145.87293976,0.00016999,2]
[362063611,1747963599140,-274.12706024,0.00017,2]
[362063612,1747963600608,-420.0,0.00017,2]
[362063613,1747963602821,-420.0,0.00017,2]
[362063614,1747963604891,-420.0,0.00017,2]
[362063615,1747963606326,-420.0,0.00017,2]
[362063617,1747963637099,-300.0,0.00016999,2]
[362063618,1747963637121,-150.0,0.00016999,2]
[362063619,1747963637145,-1565.48998488,0.00017,2]
[362063620,1747963639087,-348.75268636,0.00017,2]
[362063622,1747963674053,2073.83993859,0.0001,2]
[362063623,1747963712907,447.47291039,0.000149,2]
[362063624,1747963713603,-194.27122605,0.000149,2]
[362063625,1747963714835,2651.64892177,0.0001,2]
[362063639,1747963745073,-1762.49340278,0.00013368,2]
[362063640,1747963745747,-158.48380457,0.00013368,2]
[362063641,1747963748092,-1104.46429519,0.00013368,2]
[362063642,1747963748114,-96.81308372,0.000149,2]
[362063643,1747963748138,-430.36,0.0001699,3]
[362063644,1747963748160,-300.0,0.00016999,2]
[362063645,1747963748182,-3090.28933498,0.00017,2]
[362063657,1747963832366,-500.0,0.00016973,2]
[362063658,1747963832376,-312.64,0.0001699,2]
[362063659,1747963832387,-520.56000001,0.00016999,2]
[362063660,1747963832398,-679.43999999,0.00016999,2]
[362063661,1747963832408,-191.06814598,0.00016999,2]
[362063662,1747963832417,-12042.60332033,0.00017,2]
[362063663,1747963832429,-602.0825424,0.00017,2]
[362063664,1747963832441,-6809.275,0.00017,2]
[362063676,1747963832814,-1735.66203167,0.00017,2]
[362064070,1747963838146,-2428.61955236,0.00017,2]
[362064071,1747963838157,-1203.81270089,0.00017,2]
[362064072,1747963838378,-335.49214365,0.00017,2]
[362064083,1747963840335,-1001.55,0.00017,2]
[362064084,1747963840431,-280740.8096749,0.00017,2]
[362064085,1747963840530,-6678.69999998,0.00017,2]
[362064090,1747963843281,-64178.1191846,0.00017,2]
[362064091,1747963843291,-231.88980128,0.00017521,2]
[362064092,1747963843300,-6609.36046221,0.00018467,2]
[362064093,1747963843309,-190.90947586,0.00018467,2]
[362064094,1747963843320,-422.0,0.00018659,2]
[362064095,1747963843329,-355.94082608,0.000193,2]
[362064096,1747963843338,-355.94082599,0.000193,2]
[362064097,1747963843347,-355.94082599,0.00019624,2]
[362064098,1747963843357,-6609.36046216,0.00020248,2]
[362064099,1747963843366,-355.94082599,0.00020486,3]
[362064100,1747963843375,-151.0,0.00021067,2]
[362064101,1747963843384,-151.0,0.00021234,2]
[362064102,1747963843393,-355.94082599,0.00021348,5]
[362064103,1747963843403,-151.0,0.00021446,2]
[362064104,1747963843412,-151.0,0.00021446,2]
[362064105,1747963843421,-6609.36046216,0.0002203,2]
[362064106,1747963843431,-355.94082599,0.0002221,6]
[362064107,1747963843439,-355.94082599,0.00023072,8]
[362064108,1747963843448,-6609.36046216,0.00023811,2]
[362064109,1747963843458,-355.94082599,0.00023934,10]
[362064110,1747963843467,-500.0,0.00024658,2]
[362064111,1747963843476,-500.0,0.00024658,2]
[362064112,1747963843485,-500.0,0.00024658,2]
[362064113,1747963843495,-500.0,0.00024658,2]
[362064114,1747963843504,-435.82776923,0.00024658,2]
[362064115,1747963843513,-355.94082599,0.00024797,11]
[362064116,1747963843523,-33514.6181241,0.000248,3]
[362064117,1747963843532,-160.88370213,0.000248,2]
[362064118,1747963843542,-501.95441649,0.000248,2]
[362064119,1747963843552,-504.8569631,0.000248,2]
[362064120,1747963843561,-6609.36046216,0.00025593,2]
[362064121,1747963843573,-355.94082599,0.00025659,13]
[362064122,1747963843583,-1000.0,0.000264,2]
[362064123,1747963843593,-355.94082599,0.00026521,15]
[362064124,1747963843603,-4787.80258915,0.00026666,3]
[362064125,1747963843612,-207.73,0.00026676,2]
[362064126,1747963843622,-159.62,0.00026737,3]
[362064127,1747963843631,-6609.36046216,0.00027374,2]
[362064128,1747963843640,-355.94082599,0.00027383,17]
[362064129,1747963843653,-767.25,0.00027611,2]
[362064130,1747963843664,-206.0,0.00028012,2]
[362064131,1747963843673,-216.3864,0.00028012,2]
[362064132,1747963843684,-355.94082599,0.00028245,18]
[362064133,1747963843694,-190.90947585,0.00028934,2]
[362064134,1747963843704,-355.94082599,0.00029107,20]
[362064135,1747963843713,-6609.36046216,0.00029156,2]
[362064136,1747963843722,-154.5,0.00029164,2]
[362064137,1747963843732,-167.33,0.0002937,120]
[362064138,1747963843742,-156.71,0.00029551,2]
[362064139,1747963843752,-159.68,0.00029572,2]
[362064141,1747963843761,-150.0,0.00029574,7]
[362064142,1747963843771,-165.38,0.00029576,30]
[362064144,1747963843780,-1000.0,0.000297,2]
[362064146,1747963843791,-767.25,0.00029875,2]
[362064147,1747963843800,-355.94082599,0.00029969,22]
[362064148,1747963843809,-9575.6051783,0.0002999,3]
[362064149,1747963843822,-312.64,0.0002999,2]
[362064150,1747963843831,-14391.62190634,0.0003,2]
[362064151,1747963843843,-1173.37901347,0.0003,2]
[362064152,1747963843853,-300.0,0.0003,120]
[362064154,1747963843863,-6347.35350958,0.0003,5]
[362064156,1747963843872,-155.0,0.0003,2]
[362064157,1747963843881,-420.0,0.00030136,5]
[362064158,1747963843891,-548.67,0.00030136,2]
[362064159,1747963843900,-420.0,0.00030136,5]
[362064160,1747963843910,-420.0,0.00030136,5]
[362064161,1747963843919,-395.17306395,0.00030136,5]
[362064162,1747963843928,-420.0,0.00030136,5]
[362064163,1747963843938,-420.0,0.00030136,5]
[362064164,1747963843948,-420.0,0.00030136,5]
[362064165,1747963843957,-420.0,0.00030136,5]
[362064166,1747963843966,-420.0,0.00030136,5]
[362064167,1747963843975,-420.0,0.00030273,5]
[362064168,1747963843985,-548.67,0.00030273,2]
[362064169,1747963843995,-420.0,0.00030273,5]
[362064170,1747963844004,-420.0,0.00030273,5]
[362064171,1747963844013,-420.0,0.00030273,5]
[362064172,1747963844023,-420.0,0.00030273,5]
[362064173,1747963844032,-420.0,0.00030273,5]
[362064174,1747963844042,-420.0,0.00030273,5]
[362064175,1747963844051,-420.0,0.00030273,5]
[362064176,1747963844060,-4787.80258915,0.00030398,3]
[362064177,1747963844072,-158.51107628,0.00030404,15]
[362064178,1747963844081,-45.55499441,0.0003041,5]
[362064179,1747963844124,-374.44500559,0.0003041,5]
[362064180,1747963844133,-548.67,0.0003041,2]
[362064181,1747963844142,-512.93,0.0003041,5]
[362064182,1747963844151,-420.0,0.0003041,5]
[362064183,1747963844161,-420.0,0.0003041,5]
[362064184,1747963844170,-564.79948829,0.0003041,5]
[362064185,1747963844179,-420.0,0.0003041,5]
[362064186,1747963844190,-420.0,0.0003041,5]
[362064187,1747963844199,-420.0,0.0003041,5]
[362064188,1747963844208,-1370.65213519,0.00030494,3]
[362064189,1747963844219,-6249.879934,0.00030494,3]
[362064193,1747963846269,-151.0,0.00021074,2]
[362064194,1747963846279,-460.18999602,0.00030494,3]
[362064203,1747964737111,-589.05276845,0.00026012,2]
[362064204,1747964737134,-206.0,0.00026012,2]
[362064205,1747964737155,-207.00002,0.00026012,2]
[362064206,1747964737176,-723.29,0.00027112,2]
[362064207,1747964737197,-151.0,0.00028095,2]
[362064208,1747964737219,-31.50492704,0.0002847,2]
[362064210,1747964810097,-221.46,0.00013699,2]
[362064211,1747964810120,-250.0,0.00015068,2]
[362064212,1747964810144,-44.7403241,0.00015068,2]
[362064213,1747964843093,-155.2596759,0.00015068,2]
[362064214,1747964843114,-186.40845899,0.00016943,2]
[362064215,1747964843150,-13.59154101,0.00016943,2]
[362064216,1747964843173,-221.46,0.00020187,2]
[362064217,1747964843194,-151.0,0.00024408,2]
[362064218,1747964843214,-151.0,0.00024754,2]
[362064219,1747964843238,-151.0,0.00025572,2]
[362064220,1747964843262,-221.46,0.00026676,2]
[362064221,1747964843282,-250.0,0.00028613,2]
[362064222,1747964843304,-200.0,0.00028613,117]
[362064223,1747964843325,-154.51,0.00028821,2]
[362064224,1747964843346,-268.94728297,0.00029129,120]
[362064234,1747964961235,-151.0,0.00026467,2]
[362064235,1747964961258,-10.0532,0.00027192,2]
[362064237,1747964985430,250.0,0.00015,2]
[362064238,1747964986498,32.53644999,0.00017,2]
[362064247,1747965032315,-267.46355001,0.00017,2]
[362064248,1747965032325,-350.0,0.00019,2]
[362064249,1747965032334,-400.0,0.00021,2]
[362064250,1747965032343,-450.0,0.00023,2]
[362064251,1747965032354,-151.0,0.00026032,2]
[362064252,1747965032364,-151.0,0.00026709,2]
[362064253,1747965032374,-151.0,0.00027386,2]
[362064254,1747965032383,-151.0,0.00027984,2]
[362064255,1747965032393,-1116.295258,0.00028875,2]
[362064256,1747965032402,-1000.0,0.00029021,2]
[362064257,1747965032411,-261.54271703,0.00029129,120]
[362064258,1747965032420,-206.0,0.00029261,2]
[362064259,1747965032430,-150.0,0.00029343,7]
[362064260,1747965032439,-723.29,0.00029376,2]
[362064261,1747965032448,-156.71,0.00029385,2]
[362064262,1747965032457,-2180.19,0.00029419,2]
[362064263,1747965032466,-904.26,0.000295,2]
[362064264,1747965032475,-1200.0,0.00029587,2]
[362064265,1747965032485,-931.451549,0.00029588,4]
[362064266,1747965032494,-156.39,0.00029623,2]
[362064267,1747965032503,-170.68,0.00029623,2]
[362064268,1747965032512,-300.0,0.00029793,2]
[362064269,1747965032521,-1325.19,0.00029795,2]
[362064270,1747965032530,-222.86237587,0.000299,21]
[362064271,1747965032540,-800.0,0.0003,5]
[362064272,1747965032549,-152.96,0.0003,2]
[362064273,1747965032559,-3610.73879,0.0003011,2]
[362064274,1747965032569,-166.66,0.00030126,2]
[362064275,1747965032578,-408.0,0.00030135,2]
[362064276,1747965032587,-420.0,0.00030136,5]
[362064277,1747965032598,-420.0,0.00030136,5]
[362064278,1747965032607,-420.0,0.00030136,5]
[362064279,1747965032616,-420.0,0.00030136,5]
[362064280,1747965032625,-420.0,0.00030136,5]
[362064281,1747965032635,-238.13522276,0.00030136,5]
[362064282,1747965032646,-420.0,0.00030136,5]
[362064283,1747965032656,-420.0,0.00030136,5]
[362064284,1747965032666,-420.0,0.00030136,5]
[362064285,1747965032676,-420.0,0.00030136,5]
[362064286,1747965032686,-420.0,0.00030136,5]
[362064287,1747965032695,-420.0,0.00030136,5]
[362064289,1747965032704,-420.0,0.00030136,5]
[362064292,1747965032714,-420.0,0.00030136,5]
[362064295,1747965032723,-420.0,0.00030136,5]
[362064297,1747965032733,-697.86,0.00030136,2]
[362064301,1747965032742,-420.0,0.00030136,5]
[362064303,1747965032751,-106.80968411,0.00030136,5]
[362064304,1747965032763,-313.19031589,0.00030136,5]
[362064305,1747965032773,-420.0,0.00030136,5]
[362064306,1747965032783,-420.0,0.00030136,5]
[362064307,1747965032793,-420.0,0.00030136,5]
[362064308,1747965032802,-426.41663334,0.00030136,5]
[362064309,1747965032812,-434.94462855,0.00030136,5]
[362064310,1747965032821,-435.36494848,0.00030136,5]
[362064311,1747965032831,-435.50386862,0.00030136,5]
[362064312,1747965032842,-420.0,0.00030136,5]
[362064313,1747965032851,-420.0,0.00030136,5]
[362064314,1747965032861,-218.1720993,0.00030136,5]
[362064315,1747965032871,-439.60898649,0.00030136,5]
[362064316,1747965032880,-424.94325698,0.00030136,5]
[362064317,1747965032890,-420.0,0.00030136,5]
[362064318,1747965032900,-434.5,0.00030136,5]
[362064319,1747965032910,-431.72747567,0.00030136,5]
[362064320,1747965032919,-449.87871118,0.00030136,5]
[362064321,1747965032928,-440.97366223,0.00030136,5]
[362064322,1747965032938,-420.0,0.00030136,5]
[362064323,1747965032948,-430.88095035,0.00030136,5]
[362064325,1747965032958,-431.25536069,0.00030136,5]
[362064327,1747965032966,-442.60402049,0.00030136,5]
[362064328,1747965032976,-420.0,0.00030136,5]
[362064330,1747965032985,-440.89797073,0.00030136,5]
[362064332,1747965032994,-420.0,0.00030136,5]
[362064334,1747965033005,-420.0,0.00030136,5]
[362064336,1747965033014,-420.0,0.00030136,5]
[362064338,1747965033024,-430.86846685,0.00030136,5]
[362064340,1747965033033,-429.11674064,0.00030136,5]
[362064342,1747965033043,-440.51375202,0.00030136,5]
[362064344,1747965033054,-433.06679872,0.00030136,5]
[362064346,1747965033064,-426.62766256,0.00030136,5]
[362064348,1747965033074,-454.36478218,0.00030136,5]
[362064350,1747965033084,-309.86598999,0.00030136,5]
[362064352,1747965033094,-439.79715524,0.00030136,5]
[362064355,1747965033105,-420.0,0.00030136,5]
[362064356,1747965033115,-472.80452134,0.00030136,5]
[362064358,1747965033124,-420.0,0.00030136,5]
[362064360,1747965033139,-435.66576797,0.00030136,5]
[362064362,1747965033148,-420.0,0.00030136,5]
[362064364,1747965033159,-412.40255369,0.00030136,5]
[362064366,1747965033169,-251.4777451,0.00030136,5]
[362064367,1747965033180,-420.0,0.00030136,5]
[362064368,1747965033189,-420.0,0.00030136,5]
[362064369,1747965033199,-420.0,0.00030136,5]
[362064370,1747965033209,-429.23719224,0.00030136,5]
[362064371,1747965033219,-425.25412964,0.00030136,5]
[362064372,1747965033229,-505.87850583,0.00030136,5]
[362064373,1747965033239,-433.77857194,0.00030136,5]
[362064374,1747965033248,-436.39198317,0.00030136,5]
[362064375,1747965033258,-451.15443529,0.00030136,5]
[362064376,1747965033267,-420.0,0.00030136,5]
[362064377,1747965033276,-157.25,0.00030137,80]
[362064378,1747965033286,-1000.0,0.00030272,2]
[362064379,1747965033295,-420.0,0.00030273,5]
[362064380,1747965033306,-420.0,0.00030273,5]
[362064381,1747965033315,-420.0,0.00030273,5]
[362064382,1747965033325,-420.0,0.00030273,5]
[362064383,1747965033334,-420.0,0.00030273,5]
[362064384,1747965033343,-420.0,0.00030273,5]
[362064385,1747965033353,-420.0,0.00030273,5]
[362064386,1747965033362,-420.0,0.00030273,5]
[362064387,1747965033371,-420.0,0.00030273,5]
[362064388,1747965033381,-420.0,0.00030273,5]
[362064389,1747965033391,-420.0,0.00030273,5]
[362064390,1747965033400,-420.0,0.00030273,5]
[362064391,1747965033410,-420.0,0.00030273,5]
[362064392,1747965033419,-420.0,0.00030273,5]
[362064393,1747965033430,-521.16914984,0.00030273,5]
[362064394,1747965033440,-420.0,0.00030273,5]
[362064395,1747965033449,-420.0,0.00030273,5]
[362064396,1747965033458,-420.0,0.00030273,5]
[362064397,1747965033467,-458.52603268,0.00030273,5]
[362064398,1747965033476,-420.0,0.00030273,5]
[362064399,1747965033485,-420.0,0.00030273,5]
[362064400,1747965033494,-420.0,0.00030273,5]
[362064401,1747965033503,-434.5,0.00030273,5]
[362064402,1747965033513,-420.0,0.00030273,5]
[362064403,1747965033522,-420.0,0.00030273,5]
[362064404,1747965033531,-420.0,0.00030273,5]
[362064405,1747965033540,-420.0,0.00030273,5]
[362064406,1747965033549,-420.0,0.00030273,5]
[362064407,1747965033559,-420.0,0.00030273,5]
[362064408,1747965033568,-327.27,0.00030273,5]
[362064409,1747965033578,-420.0,0.00030273,5]
[362064410,1747965033587,-205.54881006,0.00030273,5]
[362064411,1747965033596,-420.0,0.00030273,5]
[362064412,1747965033606,-420.0,0.00030273,5]
[362064413,1747965033616,-420.0,0.00030273,5]
[362064414,1747965033626,-6067.16749971,0.00030309,2]
[362064415,1747965033635,-222.86237575,0.00030348,22]
[362064416,1747965033645,-195.33245027,0.00030396,2]
[362064417,1747965033655,-221.12283492,0.00030396,3]
[362064418,1747965033664,-218.17948407,0.00030396,2]
[362064419,1747965033674,-159.67371185,0.00030396,15]
[362064420,1747965033683,-2039.24065807,0.00030404,2]
[362064421,1747965033693,-221.12283492,0.00030406,3]
[362064422,1747965033703,-500.0,0.00030408,2]
[362064423,1747965033713,-507.46178726,0.00030408,2]
[362064424,1747965033723,-420.0,0.00030409,5]
[362064425,1747965033732,-420.0,0.00030409,5]
[362064426,1747965033742,-420.0,0.00030409,5]
[362064427,1747965033752,-420.0,0.00030409,5]
[362064428,1747965033762,-480.39023768,0.00030409,5]
[362064429,1747965033772,-420.0,0.00030409,5]
[362064430,1747965033782,-420.0,0.00030409,5]
[362064431,1747965033792,-420.0,0.00030409,5]
[362064432,1747965033802,-420.0,0.00030409,5]
[362064433,1747965033812,-420.0,0.00030409,5]
[362064434,1747965033822,-420.0,0.00030409,5]
[362064435,1747965033837,-420.0,0.00030409,5]
[362064436,1747965033847,-420.0,0.00030409,5]
[362064437,1747965033857,-420.0,0.00030409,5]
[362064438,1747965033867,-420.0,0.00030409,5]
[362064439,1747965033876,-420.0,0.00030409,5]
[362064440,1747965033888,-420.0,0.00030409,5]
[362064441,1747965033898,-420.0,0.00030409,5]
[362064442,1747965033908,-420.0,0.00030409,5]
[362064443,1747965033918,-420.0,0.00030409,5]
[362064444,1747965033928,-420.0,0.00030409,5]
[362064445,1747965033938,-420.0,0.00030409,5]
[362064446,1747965033947,-655.96,0.00030409,5]
[362064447,1747965033958,-420.0,0.00030409,5]
[362064448,1747965033967,-356.87669797,0.00030409,5]
[362064449,1747965033977,-552.96634166,0.00030409,5]
[362064450,1747965033987,-420.0,0.00030409,5]
[362064451,1747965033999,-420.0,0.00030409,5]
[362064452,1747965034008,-283.87315752,0.00030409,5]
[362064453,1747965034018,-420.0,0.00030409,5]
[362064454,1747965034027,-420.0,0.00030409,5]
[362064455,1747965034037,-420.0,0.00030409,5]
[362064456,1747965034047,-420.0,0.00030409,5]
[362064457,1747965034057,-527.09700541,0.00030409,5]
[362064458,1747965034067,-420.0,0.00030409,5]
[362064459,1747965034077,-420.0,0.00030409,5]
[362064460,1747965034087,-420.0,0.00030409,5]
[362064461,1747965034097,-420.0,0.00030409,5]
[362064462,1747965034106,-420.0,0.00030409,5]
[362064463,1747965034115,-420.0,0.00030409,5]
[362064464,1747965034125,-420.0,0.00030409,5]
[362064465,1747965034136,-420.0,0.00030409,5]
[362064466,1747965034147,-420.0,0.00030409,5]
[362064467,1747965034157,-420.0,0.00030409,5]
[362064468,1747965034166,-1000.0,0.00030409,2]
[362064469,1747965034183,-420.0,0.00030409,5]
[362064470,1747965034194,-420.0,0.00030409,5]
[362064471,1747965034205,-420.0,0.00030409,5]
[362064472,1747965034218,-420.0,0.00030409,5]
[362064473,1747965034230,-420.0,0.00030409,5]
[362064474,1747965034240,-420.0,0.00030409,5]
[362064475,1747965034250,-420.0,0.00030409,5]
[362064476,1747965034261,-420.0,0.00030409,5]
[362064477,1747965034272,-420.0,0.00030409,5]
[362064478,1747965034282,-420.0,0.00030409,5]
[362064479,1747965034293,-420.0,0.00030409,5]
[362064480,1747965034303,-497.80658257,0.00030409,5]
[362064481,1747965034313,-932.12,0.00030409,5]
[362064482,1747965034323,-178.76831943,0.00030409,5]
[362064483,1747965034334,-420.0,0.00030409,5]
[362064484,1747965034343,-420.0,0.00030409,5]
[362064485,1747965034354,-811.16,0.00030409,5]
[362064486,1747965034363,-6439.78,0.00030409,5]
[362064487,1747965034374,-420.0,0.00030409,5]
[362064488,1747965034384,-420.0,0.00030409,5]
[362064489,1747965034394,-231.22721865,0.00030409,5]
[362064490,1747965034645,-188.77278135,0.00030409,5]
[362064491,1747965034655,-1547.47,0.00030409,5]
[362064492,1747965034665,-714.01294827,0.00030409,5]
[362064493,1747965034691,-839.25,0.00030409,5]
[362064500,1747965038387,-360.43846221,0.00030409,5]
[362064501,1747965038405,-59.56153779,0.00030409,5]